bitfinex/quotes_ETHUSD_20220218
["timestamp","ask_amount","ask_price","bid_price","bid_amount"]
[1645199856450,1.3093,2805.1,2804.5,0.89227]
[1645199857048,1.3093,2805.1,2804.3,2.08446]
[1645199857049,0.2513271,2804.4,2804.3,2.08446]
[1645199857451,0.2513271,2804.4,2804.3,1.78446]
[1645199857750,21.0513271,2804.4,2803.2,0.63819997]
[1645199857949,21.0513271,2804.4,2802.8,1.78541]
[1645199857950,20.8,2804.2,2802.8,1.78541]
[1645199858390,0.69910222,2803.9,2803.0,0.89276]
[1645199858692,1.11610222,2803.9,2802.8,1.78541]
[1645199859190,0.8927972,2803.8,2802.9,0.3]
[1645199859690,0.89279,2803.6,2802.9,0.3]
[1645199860291,0.89279,2803.6,2803.0,0.70386382]
[1645199860494,2.19912399,2804.5,2803.0,0.88206382]
[1645199860693,0.00186295,2804.5,2803.0,4.68206382]
[1645199860894,0.8923,2804.3,2803.6,1.7845]
[1645199861093,0.8923,2804.3,2803.7,0.1782]
[1645199861293,0.8923,2804.3,2803.6,2.0845]
[1645199861493,0.8923,2804.3,2803.7,0.89234]
[1645199861692,0.8923,2804.3,2804.1,1.78453]
[1645199861892,0.8923,2804.3,2804.1,2.08453]
[1645199862530,0.8923,2804.3,2803.6,0.1782]
[1645199862733,1.1923,2804.3,2803.2,0.1782]
[1645199862932,0.1782,2804.2,2802.8,0.8926241]
[1645199863133,0.1782,2804.2,2802.5,0.1782]
[1645199863332,0.1782,2804.2,2802.3,1.1844]
[1645199863333,0.89279,2804.0,2802.3,1.1844]
[1645199863531,0.89279,2804.0,2803.1,0.70836228]
[1645199863532,1.78508,2803.8,2803.1,0.70836228]
[1645199863732,1.78508,2803.8,2803.4,0.89251]
[1645199863936,1.78508,2803.8,2803.1,0.70836228]
[1645199864131,1.78508,2803.8,2803.5,0.89253]
[1645199864531,0.89254,2803.7,2803.6,0.3]
[1645199864734,0.89254,2803.7,2803.5,0.89253]
[1645199865031,0.50193661,2804.0,2803.1,0.70836228]
[1645199865232,0.50193661,2804.0,2803.1,1.60108228]
[1645199865233,0.1782,2803.9,2803.1,1.60108228]
[1645199865431,0.89274,2803.7,2803.1,1.60108228]
[1645199865888,0.89274,2803.7,2803.1,1.90108228]
[1645199866186,0.2513271,2804.4,2804.2,0.89232]
[1645199866591,1.1435871,2804.4,2804.2,0.89232]
[1645199866985,1.1435871,2804.4,2804.2,0.13801375]
[1645199867186,1.1435871,2804.4,2804.1,1.78463]
[1645199867384,1.1435871,2804.4,2803.2,2.8531]
[1645199867584,1.1435871,2804.4,2803.1,0.3]
[1645199867789,1.1435871,2804.4,2803.3,0.8925168]
[1645199867986,1.1435871,2804.4,2803.4,0.3]
[1645199868287,1.1435871,2804.4,2804.1,0.59020409]
[1645199868486,0.2513271,2804.4,2804.1,0.59020409]
[1645199868687,0.2513271,2804.4,2804.1,0.54020409]
[1645199868886,0.2513271,2804.4,2804.2,0.89242]
[1645199869301,0.2513271,2804.4,2804.3,0.3]
[1645199869544,1.1435771,2804.4,2804.3,0.3]
[1645199870242,1.1435771,2804.4,2804.1,2.08469]
[1645199870640,1.1435771,2804.4,2804.2,0.01162397]
[1645199870840,1.1435771,2804.4,2804.2,0.31162397]
[1645199871039,1.1435771,2804.4,2804.2,1.20396397]
[1645199871241,0.2513271,2804.4,2804.2,1.20396397]
[1645199871840,0.2513271,2804.4,2804.2,0.90396397]
[1645199872041,0.2513271,2804.4,2804.2,0.01162397]
[1645199872640,0.2513271,2804.4,2804.2,0.31162397]
[1645199872841,2.0360871,2804.4,2804.2,0.31162397]
[1645199873040,0.2513271,2804.4,2804.2,0.31162397]
[1645199874384,2.71e-05,2804.4,2804.2,0.31162397]
[1645199874585,2.71e-05,2804.4,2804.2,1.20387367]
[1645199877245,2.71e-05,2804.4,2804.2,0.31162397]
[1645199877648,2.71e-05,2804.4,2803.9,1.78472]
[1645199877947,2.71e-05,2804.4,2803.3,0.1782]
[1645199878147,2.71e-05,2804.4,2802.6,3.284]
[1645199878148,2.71e-05,2804.4,2802.8,4.4629717]
[1645199878149,0.89265,2804.2,2802.8,4.4629717]
[1645199878447,1.19265,2804.2,2803.0,0.89261]
[1645199878648,1.19265,2804.2,2803.4,1.78515]
[1645199879047,1.19265,2804.2,2803.5,0.8924697]
[1645199879847,1.19265,2804.2,2803.9,0.89231]
[1645199879848,0.89265,2804.2,2803.9,0.89231]
[1645199880046,2.70535629,2804.3,2803.9,0.89231]
[1645199880047,0.02742629,2804.3,2803.9,0.89231]
[1645199880248,0.02742629,2804.3,2804.0,0.3]
[1645199880650,0.02742629,2804.3,2803.5,1.7847802]
[1645199880887,0.02742629,2804.3,2803.9,0.89239]
[1645199880888,0.00163488,2804.1,2803.9,0.89239]
[1645199881082,0.00163488,2804.1,2803.9,1.52184711]
[1645199881283,0.00163488,2804.1,2803.9,0.62945711]
[1645199881484,0.00163488,2804.1,2803.8,1.78469]
[1645199881686,0.00163488,2804.1,2803.5,2.0847802]
[1645199881884,0.00163488,2804.1,2803.5,0.3]
[1645199882287,0.3,2803.9,2803.5,0.3]
[1645199882484,0.3,2803.9,2802.8,1.1679]
[1645199882485,0.89271,2803.8,2802.8,1.1679]
[1645199882687,0.89271,2803.8,2802.7,0.1782]
[1645199882688,0.89271,2803.8,2803.1,0.54280137]
[1645199882887,0.1782,2803.7,2803.1,0.54280137]
[1645199883184,0.1782,2803.7,2802.6,2.784]
[1645199883385,0.1782,2803.7,2802.7,1.78537]
[1645199883386,1.78542,2803.7,2802.7,1.78537]
[1645199883785,0.89271,2803.6,2802.7,1.78537]
[1645199883984,0.89271,2803.6,2802.3,9.673]
[1645199883985,1.0711929,2803.5,2802.3,9.673]
[1645199884186,0.6736201,2803.4,2802.4,1.54326159]
[1645199884388,0.1782,2803.3,2802.4,1.54326159]
[1645199884646,1.6514639,2803.7,2802.4,0.65040159]
[1645199884647,0.89298,2803.1,2802.4,0.65040159]
[1645199885041,1.19298,2803.1,2802.4,0.65040159]
[1645199885241,0.1782,2803.6,2802.4,1.54302159]
[1645199885445,0.1782,2804.0,2802.8,1.7849974]
[1645199885843,0.00163523,2803.5,2802.8,1.7849974]
[1645199886041,0.00163523,2803.5,2802.8,2.7849974]
[1645199886244,0.00163523,2803.5,2803.1,0.89259]
[1645199886444,0.00163523,2803.5,2803.1,1.7850771]
[1645199886643,0.00163523,2803.5,2803.2,0.52756884]
[1645199887342,0.89419523,2803.5,2803.2,0.52756884]
[1645199887542,0.89259523,2803.5,2803.2,0.52756884]
[1645199887744,0.00431549,2804.1,2803.4,0.8924]
[1645199887942,2.71e-05,2804.4,2803.4,0.8924]
[1645199887943,2.71e-05,2804.4,2803.4,6.0]
[1645199888386,2.71e-05,2804.4,2803.4,7.78449]
[1645199888588,2.71e-05,2804.4,2803.8,0.50710456]
[1645199888785,2.71e-05,2804.4,2803.6,1.7843926]
[1645199889087,2.71e-05,2804.4,2803.2,0.1782]
[1645199889289,2.71e-05,2804.4,2803.1,0.1782]
[1645199889486,2.71e-05,2804.4,2803.4,1.78461]
[1645199889690,2.71e-05,2804.4,2803.6,0.8923494]
[1645199889887,2.71e-05,2804.4,2803.4,1.7846654]
[1645199890088,2.71e-05,2804.4,2803.0,3.0843]
[1645199890089,2.71e-05,2804.4,2803.0,3.2625]
[1645199890290,2.71e-05,2804.4,2803.0,3.0843]
[1645199890291,0.1782,2804.3,2803.0,3.0843]
[1645199890887,1.91298,2804.3,2803.6,0.53579147]
[1645199891089,1.91298,2804.3,2803.7,1.78484]
[1645199891289,2.21298,2804.3,2803.6,0.53579147]
[1645199891491,2.21298,2804.3,2803.0,3.0843]
[1645199891890,3.10557,2804.3,2803.2,0.89262]
[1645199892138,2.21298,2804.3,2803.1,1.78516]
[1645199892340,2.21298,2804.3,2803.0,3.0843]
[1645199892538,2.21298,2804.3,2803.3,0.6901367]
[1645199892937,24.01298,2804.3,2803.0,0.2548]
[1645199893148,0.3514639,2804.2,2803.0,0.2548]
[1645199893339,20.8,2803.9,2803.0,0.2548]
[1645199893539,20.8,2803.7,2803.0,0.18516134]
[1645199893737,0.417,2803.7,2803.0,0.18516134]
[1645199893938,0.64501993,2803.6,2803.0,0.18516134]
[1645199894339,1.7856,2803.6,2803.0,0.18516134]
[1645199894539,0.8928,2803.5,2803.0,0.18516134]
[1645199895350,0.758215,2803.5,2803.0,0.18516134]
[1645199895989,0.70455991,2803.0,2802.9,0.134585]
[1645199896187,0.70455991,2803.0,2801.7,0.13819997]
[1645199896188,0.89316,2802.7,2801.7,0.13819997]
[1645199896389,0.89316,2802.7,2801.8,0.89309]
[1645199896587,0.89316,2802.7,2801.3,2.7049]
[1645199896787,0.3,2802.7,2801.3,2.7049]
[1645199897189,2.67995,2802.7,2801.5,0.6305906]
[1645199897389,0.89332,2802.5,2801.5,0.6305906]
[1645199897590,0.89332,2802.5,2801.6,0.89314]
[1645199898191,0.89332,2802.5,2802.1,0.53405476]
[1645199898790,0.89332,2802.5,2802.2,0.893]
[1645199899189,1.19332,2802.5,2802.0,1.78599]
[1645199900846,1.19332,2802.5,2801.7,0.89452397]
[1645199900847,1.19332,2802.5,2801.8,1.78616]
[1645199900848,1.19439355,2802.5,2801.8,1.78616]
[1645199901140,1.78621,2802.3,2801.8,1.78616]
[1645199901342,0.3,2802.2,2801.8,1.78616]
[1645199901539,0.3,2802.2,2801.7,0.00294794]
[1645199901739,1.00712368,2802.2,2801.7,0.00147397]
[1645199901939,21.80712368,2802.2,2801.7,0.00147397]
[1645199902142,1.78632,2802.1,2801.7,0.00147397]
[1645199902341,1.78632,2802.1,2801.7,7.397e-05]
[1645199902343,23.58632,2802.1,2801.7,7.397e-05]
[1645199902544,20.8,2801.9,2801.7,7.397e-05]
[1645199902746,21.1,2801.9,2801.7,7.397e-05]
[1645199902942,0.89346,2801.7,2801.4,0.00147412]
[1645199903391,1.19346,2801.7,2801.4,0.00147412]
[1645199903591,0.89346,2801.7,2801.4,0.00147412]
[1645199903789,1.5253,2802.1,2801.5,0.89312]
[1645199903988,0.3,2802.1,2801.2,0.65569415]
[1645199904188,3.78637355,2802.5,2801.2,1.54885145]
[1645199904189,0.3,2802.2,2801.2,1.54885145]
[1645199904390,1.78635,2802.1,2801.3,3.5]
[1645199904590,0.00107355,2802.5,2801.8,0.89317]
[1645199905394,0.00107355,2802.5,2801.0,0.00167423]
[1645199905395,0.59012341,2802.1,2801.0,0.00167423]
[1645199905692,1.48462711,2802.1,2801.0,0.00167423]
[1645199905989,0.59119711,2802.1,2801.0,0.00167423]
[1645199906390,20.8,2802.0,2801.0,0.0070026]
[1645199906788,21.8,2801.9,2801.0,0.0070026]
[1645199907035,0.60454776,2801.3,2801.0,0.0070026]
[1645199907234,21.8,2801.9,2801.0,0.0070026]
[1645199907235,0.89345,2801.2,2801.0,0.0070026]
[1645199907437,1.19345,2801.2,2801.0,0.0070026]
[1645199907634,1.19345,2801.2,2800.9,0.14207952]
[1645199908637,1.8780998,2801.2,2800.9,0.14207952]
[1645199908837,1.19345,2801.2,2800.9,0.134585]
[1645199909038,2.19345,2801.2,2800.9,0.134585]
[1645199910038,1.19345,2801.2,2800.9,0.134585]
[1645199910241,0.89328,2801.4,2800.9,0.134585]
[1645199910891,0.00107403,2801.1,2800.9,3.707935]
[1645199911087,0.00107403,2801.1,2800.9,1.921345]
[1645199911288,0.00107403,2801.1,2800.9,0.134585]
[1645199911289,1.78721,2801.0,2800.9,0.134585]
[1645199911490,1.78721,2801.0,2800.8,0.49654026]
[1645199911491,4.5,2800.9,2800.8,0.49654026]
[1645199912692,0.3514639,2801.5,2800.8,0.49654026]
[1645199912889,2.68034,2801.7,2800.8,0.1784]
[1645199913191,1.1949,2802.3,2800.3,0.00742939]
[1645199913192,1.1949,2802.3,2800.7,0.1784]
[1645199913388,0.89325,2802.2,2801.5,1.78647]
[1645199913988,1.4465193,2802.2,2801.5,1.78647]
[1645199914289,0.89325,2802.2,2801.8,0.89325]
[1645199914542,0.89325,2802.2,2801.8,0.34325]
[1645199914733,0.89325,2802.2,2801.5,1.78647]
[1645199915136,0.84325,2802.2,2801.5,1.78647]
[1645199915737,1.14419106,2802.2,2801.5,1.78647]
[1645199915934,2.27209106,2802.2,2801.3,0.89628082]
[1645199916138,2.27209106,2802.2,2801.3,0.89484041]
[1645199916436,2.27209106,2802.2,2801.3,0.00144041]
[1645199916437,5.0,2801.9,2801.3,0.00144041]
[1645199916636,0.717,2802.1,2801.0,0.00540202]
[1645199916637,0.89356,2801.1,2801.0,0.00540202]
[1645199917841,1.19356,2801.1,2801.0,0.00540202]
[1645199918138,0.89356,2801.1,2801.0,0.00540202]
[1645199918391,1.19356,2801.1,2800.9,1.78691]
[1645199918589,0.89356,2801.1,2800.9,1.78691]
[1645199918788,0.5026643,2801.2,2800.9,3.57351]
[1645199919188,0.5026643,2801.2,2800.9,1.78691]
[1645199919789,2.2896543,2801.2,2800.9,1.78691]
[1645199920290,2.5896543,2801.2,2800.9,1.78691]
[1645199920692,2.5905941,2801.2,2800.9,1.78691]
[1645199920898,0.89345,2801.1,2800.9,1.78691]
[1645199921292,0.8036041,2801.2,2800.9,1.78691]
[1645199921490,0.8036041,2801.2,2800.9,2.6804]
[1645199922136,0.5036041,2801.2,2800.9,2.6804]
[1645199923137,0.5036041,2801.2,2801.1,0.61967333]
[1645199923540,0.5027041,2801.2,2801.1,0.61967333]
[1645199923837,0.5027041,2801.2,2801.1,0.03982013]
[1645199924040,0.5027041,2801.2,2801.1,0.02898062]
[1645199928190,0.50270538,2801.2,2801.1,0.03970913]
[1645199929839,1.3402,2802.3,2801.1,0.03970913]
[1645199930042,1.3402,2802.3,2801.9,0.71572259]
[1645199930043,1.1117,2802.3,2801.9,0.71572259]
[1645199930240,0.127,2802.7,2801.9,1.01572259]
[1645199930845,0.89298,2802.1,2801.9,1.01572259]
[1645199931843,0.89298,2802.1,2801.9,0.71572259]
[1645199932047,1.19298,2802.1,2801.7,0.00145043]
[1645199932845,0.89298,2802.1,2801.7,0.00145043]
[1645199933046,0.89298,2802.1,2801.6,1.78628]
[1645199933280,0.84298,2802.1,2801.7,0.6675679]
[1645199933886,1.14298,2802.1,2801.5,1.78616]
[1645199934082,1.14298,2802.1,2801.3,0.00145085]
[1645199934083,0.47845913,2801.4,2801.3,0.00145085]
[1645199934282,1.37181913,2801.4,2801.3,0.00145085]
[1645199934683,1.32181913,2801.4,2801.3,0.00145085]
[1645199935082,1.32181913,2801.4,2801.3,0.57832244]
[1645199935282,0.42845913,2801.4,2801.3,0.57687159]
[1645199935486,0.42845913,2801.4,2801.3,0.87687159]
[1645199935783,0.42845913,2801.4,2801.1,0.3]
[1645199936182,0.42845913,2801.4,2800.8,1.20023274]
[1645199936385,0.42845913,2801.4,2800.8,2.10042527]
[1645199936582,0.42845913,2801.4,2801.2,0.61587122]
[1645199936781,0.42845913,2801.4,2801.2,0.91587122]
[1645199937643,1.32164913,2801.4,2801.2,0.91587122]
[1645199937842,1.32164913,2801.4,2801.0,0.3]
[1645199938446,1.3495275,2801.4,2801.0,0.3]
[1645199938748,1.3495275,2801.4,2800.7,2.09350265]
[1645199938946,1.3495275,2801.4,2800.8,0.89333]
[1645199939747,0.4563375,2801.4,2800.8,0.89333]
[1645199940444,0.4563375,2801.4,2800.9,0.3]
[1645199940645,2.98042205,2802.1,2800.9,0.3]
[1645199940646,0.00082205,2802.1,2801.1,6.5]
[1645199940898,2.226e-05,2801.4,2801.1,6.5]
[1645199941092,2.226e-05,2801.4,2801.1,0.89294]
[1645199941288,2.226e-05,2801.4,2801.1,1.19294]
[1645199941493,2.226e-05,2801.4,2801.1,2.08587]
[1645199941688,2.226e-05,2801.4,2801.1,2.9789148]
[1645199941889,2.226e-05,2801.4,2801.2,5.0]
[1645199942091,2.226e-05,2801.4,2801.2,6.0]
[1645199942890,2.226e-05,2801.4,2801.2,1.0]
[1645199943290,1.78588,2802.3,2801.2,1.0]
[1645199943591,2.19726092,2803.1,2802.0,0.8927885]
[1645199943791,2.19726092,2803.2,2801.8,1.7855143]
[1645199943993,0.89282,2802.5,2801.5,1.417]
[1645199944190,0.89282,2802.5,2802.1,0.70137836]
[1645199944643,0.89282,2802.5,2802.1,1.00137836]
[1645199945343,0.89282,2802.5,2802.2,1.78572]
[1645199946448,2.19726092,2803.2,2802.7,1.78532]
[1645199946649,2.19726092,2803.4,2802.8,0.3]
[1645199946850,4.30945194,2803.6,2802.9,0.65097291]
[1645199946851,3.49551286,2803.6,2802.9,0.65097291]
[1645199947052,0.00685194,2803.6,2802.9,5.65097291]
[1645199947247,0.01370531,2803.6,2802.9,6.24617291]
[1645199947446,0.01370531,2803.6,2803.4,5.89243]
[1645199947447,0.00685337,2803.6,2803.4,5.89243]
[1645199947647,0.00685337,2803.6,2803.5,0.717]
[1645199947846,0.00685337,2803.6,2803.5,1.717]
[1645199948047,0.00685337,2803.6,2803.5,2.36008152]
[1645199948288,0.00685337,2803.6,2803.5,1.36008152]
[1645199948493,0.00171359,2803.8,2803.5,1.36008152]
[1645199948691,0.00685352,2804.1,2803.6,9.89212]
[1645199948889,0.00685352,2804.1,2803.6,3.0932026]
[1645199949089,0.00685352,2804.1,2803.6,3.3932026]
[1645199949891,2.71e-05,2804.4,2804.2,0.89231]
[1645199949892,1.78472,2804.3,2804.2,0.89231]
[1645199950096,1.78472,2804.3,2803.9,1.78461]
[1645199950295,1.78472,2804.3,2804.0,0.3]
[1645199950494,1.78472,2804.3,2803.3,4.72611]
[1645199950694,2.71e-05,2804.4,2803.3,2.7629]
[1645199950695,0.16656951,2803.9,2803.3,2.7629]
[1645199950892,0.16656951,2803.9,2802.9,1.2279]
[1645199951095,0.16656951,2803.9,2803.4,0.5267174]
[1645199951294,0.89258,2803.8,2803.4,0.5267174]
[1645199951502,0.89258,2803.8,2802.6,1.78534]
[1645199951693,2.19258,2803.8,2802.4,0.10782706]
[1645199951895,1.3,2803.8,2802.6,0.89283]
[1645199952137,1.3,2803.8,2802.5,3.6274]
[1645199952338,0.3,2803.8,2802.5,3.6274]
[1645199952539,0.57906553,2803.7,2802.8,0.64989526]
[1645199952739,1.19283,2803.4,2802.8,0.64989526]
[1645199952939,0.3,2803.4,2802.8,0.64989526]
[1645199953140,0.3,2803.4,2802.8,0.94989526]
[1645199953337,2.97849,2803.6,2802.8,0.94989526]
[1645199953739,0.89275,2803.2,2802.8,0.94989526]
[1645199955986,0.89275,2803.2,2802.8,1.84261526]
[1645199956986,0.89275,2803.2,2802.8,0.64989526]
[1645199957191,0.89293,2802.5,2802.4,0.10782706]
[1645199957389,0.28957723,2802.6,2802.4,0.10782706]
[1645199957688,3.85906966,2803.6,2802.4,0.10782706]
[1645199957689,0.13535966,2803.6,2802.4,0.10782706]
[1645199957890,0.00685966,2803.6,2802.5,0.1782]
[1645199958088,0.00685966,2803.6,2802.9,0.8925899]
[1645199958289,0.00685894,2803.4,2803.1,0.67083058]
[1645199958490,0.89943894,2803.4,2803.1,1.56345058]
[1645199958689,0.00685894,2803.4,2803.1,1.56345058]
[1645199959553,0.00685982,2803.8,2803.7,0.51316913]
[1645199959745,0.89947982,2803.8,2803.7,0.51316913]
[1645199960145,0.2825886,2803.6,2803.2,1.78518]
[1645199960343,0.2825886,2803.6,2803.0,0.03624179]
[1645199960843,0.89276,2803.5,2803.0,0.03624179]
[1645199961244,1.19276,2803.5,2803.0,0.03624179]
[1645199961447,1.19276,2803.5,2803.2,0.68805773]
[1645199962747,0.89276,2803.5,2803.2,0.68805773]
[1645199962948,0.2825886,2803.6,2803.2,0.68805773]
[1645199963149,0.2825886,2803.6,2803.2,0.98805773]
[1645199963589,0.2825886,2803.6,2803.2,2.77311773]
[1645199963791,0.2825886,2803.6,2803.2,0.98805773]
[1645199963989,0.2825886,2803.6,2803.2,1.88065773]
[1645199963990,0.89256,2803.5,2803.2,1.88065773]
[1645199964490,0.89256,2803.5,2803.2,0.98805773]
[1645199965089,0.89256,2803.5,2803.2,0.68805773]
[1645199965294,0.89256,2803.5,2803.2,1.18805773]
[1645199965690,0.89256,2803.5,2803.2,0.68805773]
[1645199965691,0.1285,2803.4,2803.2,0.68805773]
[1645199965890,1.78566,2803.3,2803.2,0.68805773]
[1645199966490,1.19256,2803.5,2803.2,0.68805773]
[1645199966690,0.89256,2803.5,2803.2,0.68805773]
[1645199967150,1.19256,2803.5,2803.2,0.51524128]
[1645199967552,1.19256,2803.5,2803.2,1.40783128]
[1645199967749,0.89256,2803.5,2803.2,0.51524128]
[1645199968350,0.02465305,2803.4,2803.2,0.51524128]
[1645199968551,0.76721305,2803.5,2802.8,0.89277]
[1645199968751,0.76721305,2803.5,2802.3,1.1744]
[1645199968752,0.46721305,2803.5,2802.3,1.1744]
[1645199968951,1.78539,2803.4,2802.0,8.1441]
[1645199969151,1.78539,2803.4,2802.5,0.1782]
[1645199969550,1.78539,2803.4,2802.0,8.1441]
[1645199969753,1.78539,2803.4,2802.9,0.59405052]
[1645199970452,1.78568,2803.2,2802.9,0.59405052]
[1645199971886,1.78584,2803.0,2802.9,0.59405052]
[1645199972290,0.1285,2803.5,2802.9,0.89405052]
[1645199972487,0.29008388,2803.6,2802.9,0.89405052]
[1645199972488,0.29749372,2803.6,2802.9,0.89405052]
[1645199972687,0.28999844,2803.6,2803.0,1.78537]
[1645199973089,0.28999844,2803.6,2803.1,0.89269]
[1645199973490,0.28999844,2803.6,2803.5,0.55127012]
[1645199973687,0.28999844,2803.6,2803.1,0.89269]
[1645199973887,0.2825886,2803.6,2803.0,1.78537]
[1645199974091,2.0679686,2803.6,2802.4,2.96398706]
[1645199974288,0.1285,2803.5,2803.1,0.89289]
[1645199974550,2.4964686,2803.6,2803.1,0.39289]
[1645199974736,1.4752686,2803.6,2803.4,0.67802043]
[1645199974935,1.4752686,2803.6,2803.4,1.57073043]
[1645199975136,1.4752686,2803.6,2803.4,0.67802043]
[1645199975336,1.4752686,2803.6,2803.4,1.57076043]
[1645199975738,1.4752686,2803.6,2803.4,0.67802043]
[1645199975936,0.2825886,2803.6,2803.4,0.67802043]
[1645199976537,0.2825886,2803.6,2803.2,1.78548]
[1645199976738,0.37246317,2803.3,2802.6,1.78569]
[1645199976938,0.37246317,2803.3,2802.2,4.71149]
[1645199976939,0.37246317,2803.3,2802.8,0.892772]
[1645199977336,0.37246317,2803.3,2803.0,1.78571]
[1645199977538,0.37246317,2803.3,2803.0,2.67852]
[1645199977738,0.37246317,2803.3,2803.1,0.89288]
[1645199977938,0.37246317,2803.3,2803.2,0.58614121]
[1645199979000,0.37246317,2803.3,2803.1,1.19288]
[1645199979001,0.37246317,2803.3,2803.1,0.89288]
[1645199979202,0.37246317,2803.3,2803.0,1.78571]
[1645199979402,0.1285,2803.2,2803.0,1.78569]
[1645199979602,0.37246317,2803.3,2803.0,1.78569]
[1645199979901,0.37246317,2803.3,2803.0,2.67848]
[1645199980101,0.37246317,2803.3,2803.1,0.5890095]
[1645199980404,1.26541317,2803.3,2803.1,1.4818295]
[1645199981304,1.26541317,2803.3,2803.1,0.4815763]
[1645199981501,0.2825886,2803.6,2803.3,0.89263]
[1645199981702,0.2825886,2803.6,2803.4,0.89258]
[1645199983138,0.2825886,2803.6,2803.4,2.7849554]
[1645199983342,0.00680088,2803.8,2803.4,4.4621154]
[1645199983538,0.1699699,2803.9,2803.4,4.4621154]
[1645199983539,0.16826979,2803.9,2803.5,3.56963]
[1645199983938,0.00680084,2804.1,2803.7,5.89234]
[1645199984138,0.00680084,2804.1,2803.8,1.0705522]
[1645199984337,0.00680084,2804.1,2803.8,2.8550222]
[1645199984538,0.00680084,2804.1,2803.8,1.96277]
[1645199984539,0.00170692,2803.9,2803.8,1.96277]
[1645199984738,0.00170692,2803.9,2803.8,1.78447]
[1645199984938,0.00682689,2804.3,2803.8,1.78447]
[1645199985138,0.00682689,2804.3,2803.9,1.96254]
[1645199985338,0.00682689,2804.3,2803.9,7.8546865]
[1645199985540,0.00682689,2804.3,2803.9,8.8546865]
[1645199985792,2.71e-05,2804.4,2804.0,3.5]
[1645199985996,2.71e-05,2804.4,2804.1,1.59700555]
[1645199986292,2.71e-05,2804.4,2804.1,2.41880555]
[1645199986894,2.71e-05,2804.4,2804.2,2.67622]
[1645199987092,2.71e-05,2804.4,2804.2,5.35249]
[1645199987293,2.71e-05,2804.4,2804.3,2.6762753]
[1645199988295,0.8911,2805.2,2805.0,0.892]
[1645199988496,7.22786854,2806.4,2805.0,0.892]
[1645199988497,2.19726092,2805.5,2805.0,1.78394]
[1645199988698,2.92719883,2806.1,2805.0,0.892]
[1645199988699,2.19726092,2805.6,2805.0,0.892]
[1645199989095,2.19726092,2805.6,2804.3,9.21028223]
[1645199989096,2.19726092,2805.4,2804.2,3.56829]
[1645199989295,3.98199092,2805.2,2803.9,2.9257]
[1645199989542,0.1285,2805.3,2804.9,1.78449]
[1645199989543,2.19726092,2805.3,2804.9,1.78449]
[1645199989741,2.32576092,2805.3,2804.9,1.78449]
[1645199989940,2.32576092,2805.3,2804.9,0.89227]
[1645199990342,2.32576092,2805.3,2805.2,0.51342191]
[1645199990544,2.19914444,2805.4,2805.2,0.51342191]
[1645199990743,2.49726092,2805.4,2805.2,0.51342191]
[1645199990944,2.49726092,2805.4,2803.9,0.1782]
[1645199991148,2.19726092,2805.0,2803.8,0.03659645]
[1645199991349,0.1285,2804.9,2803.8,0.03659645]
[1645199991543,0.89242,2804.6,2804.0,1.78472]
[1645199991744,1.19242,2804.6,2804.3,1.78472]
[1645199991945,1.19242,2804.6,2804.4,0.68717424]
[1645199992343,1.5,2804.5,2804.4,0.68717424]
[1645199992944,1.5,2804.5,2804.4,0.98717424]
[1645199993590,1.5,2804.5,2804.2,1.78478]
[1645199993792,1.5,2804.5,2804.3,1.78461]
[1645199993793,7.39242,2804.4,2804.3,1.78461]
[1645199994095,6.5,2804.4,2804.3,1.78461]
[1645199994494,6.5,2804.4,2804.2,3.5693924]
[1645199994691,6.5,2804.4,2804.3,0.59747065]
[1645199994892,6.35,2804.4,2804.3,0.8923106]
[1645199995294,6.35170186,2804.4,2804.2,3.56949]
[1645199995695,6.35170186,2804.4,2804.2,1.78469]
[1645199996295,6.35170186,2804.4,2804.2,2.29270907]
[1645199996296,7.24409186,2804.4,2804.2,2.29270907]
[1645199996497,7.24579929,2804.4,2804.2,1.71708559]
[1645199996698,7.24409743,2804.4,2804.2,1.03708559]
[1645199996902,7.24409743,2804.4,2803.3,0.1782]
[1645199997155,9.86985835,2804.4,2803.2,0.2978]
[1645199997352,0.50583436,2803.6,2803.2,0.2978]
[1645199997660,0.89269,2803.5,2803.3,1.78524]
[1645199998253,0.89269,2803.5,2803.4,1.32275119]
[1645199998854,0.00172072,2804.0,2803.4,1.32275119]
[1645199999156,0.00172046,2804.0,2803.4,1.32275119]
[1645199999361,0.00172046,2804.0,2803.5,0.1782]
[1645199999556,0.00172046,2804.0,2803.9,0.51311653]
[1645199999756,0.00172046,2804.0,2803.9,0.81311653]
[1645199999757,1.78683046,2804.0,2803.9,0.81311653]
[1645200000158,1.78855097,2804.0,2803.9,0.3]
[1645200000357,1.78683051,2804.0,2803.4,1.7849145]
[1645200000799,1.78683051,2804.0,2803.2,2.941165]
[1645200001189,1.78683051,2804.0,2803.5,0.6815519]
[1645200001590,4.48272,2804.0,2803.5,0.6815519]
[1645200002191,2.29657253,2804.0,2803.5,0.6815519]
[1645200002390,6.5,2803.9,2803.2,1.71583556]
[1645200002590,0.65990266,2803.6,2803.2,1.71583556]
[1645200002790,9.17833,2803.9,2803.2,1.71583556]
[1645200003089,9.17833,2803.9,2803.2,0.65890232]
[1645200003491,9.17833,2803.9,2803.1,0.89275]
[1645200003690,6.5,2803.4,2802.6,10.18283485]
[1645200003891,6.5,2803.4,2802.4,4.57033]
[1645200003892,6.5,2803.4,2802.5,3.57007]
[1645200004090,0.65990266,2803.0,2802.6,1.0]
[1645200004289,0.65990266,2803.0,2802.5,3.74837]
[1645200004539,0.1782,2803.3,2802.9,0.56067839]
[1645200004944,1.78575,2803.0,2802.9,0.56067839]
[1645200005138,1.96395,2803.0,2802.6,0.89285]
[1645200005438,0.1782,2802.9,2802.6,0.89285]
[1645200005637,0.65990266,2802.8,2802.6,0.89285]
[1645200005837,1.058,2802.7,2802.6,1.78573]
[1645200006239,1.058,2802.7,2802.6,0.58573]
[1645200006638,1.058,2802.7,2802.6,1.1012498]
[1645200007041,1.058,2802.7,2802.6,1.4012498]
[1645200007240,1.058,2802.7,2801.8,3.57097]
[1645200007241,0.89292,2802.5,2801.8,3.57097]
[1645200007540,0.89292,2802.5,2801.2,32.75152]
[1645200007541,1.058,2802.4,2801.2,32.75152]
[1645200007741,0.1784,2802.3,2801.2,24.37152]
[1645200007938,0.1784,2802.3,2801.6,0.893]
[1645200008141,1.058,2802.4,2801.6,1.7859361]